bitfinex/quotes_BTCUSD_20251016
["timestamp","ask_amount","ask_price","bid_price","bid_amount"]
[1760649249126,0.0001509,108190.0,108180.0,1.2827431]
[1760649249484,0.0001509,108190.0,108180.0,1.31305111]
[1760649249892,0.0001509,108190.0,108180.0,6.28077508]
[1760649250416,0.0001509,108190.0,108180.0,6.31305111]
[1760649250626,0.0001509,108190.0,108180.0,5.87170116]
[1760649250982,0.0001509,108190.0,108180.0,6.31305111]
[1760649251799,0.0001509,108190.0,108180.0,6.68923339]
[1760649252001,0.06363882,108230.0,108220.0,0.18480872]
[1760649252267,0.40400298,108230.0,108220.0,0.27800872]
[1760649252476,0.40400298,108230.0,108220.0,0.0932]
[1760649252680,0.36519945,108230.0,108220.0,0.29648959]
[1760649252964,0.36519945,108230.0,108220.0,0.27800872]
[1760649253319,0.54999109,108230.0,108220.0,0.27800872]
[1760649254493,0.55099109,108230.0,108220.0,0.27800872]
[1760649254644,0.36519945,108230.0,108220.0,0.27800872]
[1760649254847,0.36519945,108230.0,108220.0,0.27804872]
[1760649255239,0.36519945,108230.0,108220.0,0.36773884]
[1760649257180,0.36519945,108230.0,108220.0,0.80908879]
[1760649257499,0.36519945,108230.0,108220.0,0.36773884]
[1760649257703,0.02519945,108230.0,108220.0,0.36773884]
[1760649258044,0.00533836,108230.0,108220.0,0.36769884]
[1760649258158,0.00533836,108230.0,108220.0,0.80904879]
[1760649260688,0.00533836,108230.0,108220.0,5.80904879]
[1760649261151,0.00533836,108230.0,108220.0,5.83762482]
[1760649261360,0.00533836,108230.0,108220.0,5.8738071]
[1760649261563,0.00533836,108230.0,108220.0,5.84523107]
[1760649262399,0.00533836,108230.0,108220.0,5.8738071]
[1760649262796,0.0002,108240.0,108230.0,0.18479164]
[1760649262999,0.00035078,108240.0,108230.0,0.75201399]
[1760649263411,0.00035078,108240.0,108230.0,0.78059002]
[1760649263619,0.00035078,108240.0,108230.0,5.78059002]
[1760649264041,0.00035078,108240.0,108230.0,6.22193997]
[1760649264454,0.00035078,108240.0,108230.0,6.19336394]
[1760649264666,0.00035078,108240.0,108230.0,6.22193997]
[1760649264887,0.01497568,108260.0,108250.0,5.66228973]
[1760649265095,0.01497568,108260.0,108250.0,5.84513985]
[1760649265920,0.00248163,108260.0,108250.0,5.84513985]
[1760649266333,0.00248163,108260.0,108250.0,5.87371588]
[1760649267159,0.00248163,108260.0,108250.0,5.90362397]
[1760649267510,0.00248163,108260.0,108250.0,6.23542553]
[1760649267715,0.00248163,108260.0,108250.0,6.23642553]
[1760649268338,0.00248163,108260.0,108250.0,5.43465799]
[1760649268519,0.00248163,108260.0,108250.0,6.1146895]
[1760649268723,0.00248163,108260.0,108250.0,6.2078095]
[1760649269760,0.20863938,108280.0,108270.0,0.18472337]
[1760649269957,0.02408332,108280.0,108270.0,0.36753349]
[1760649270201,0.01484801,108280.0,108270.0,0.36753349]
[1760649272968,0.01484801,108280.0,108270.0,1.17686728]
[1760649274233,0.01484801,108280.0,108270.0,0.36753349]
[1760649274596,0.19955432,108280.0,108270.0,0.08969012]
[1760649274797,0.19955432,108280.0,108270.0,0.18281012]
[1760649275005,0.20878963,108280.0,108250.0,0.82145633]
[1760649275211,0.18472337,108270.0,108260.0,5.18281012]
[1760649275414,0.18472337,108270.0,108260.0,5.0]
[1760649275611,0.18474907,108260.0,108240.0,5.49986053]
[1760649275852,0.19398609,108260.0,108250.0,0.08969012]
[1760649276062,0.19395953,108270.0,108250.0,0.18281012]
[1760649276263,0.19395953,108270.0,108250.0,0.36756749]
[1760649276481,0.19395953,108270.0,108250.0,0.86742802]
[1760649276919,0.18473059,108270.0,108260.0,0.01847404]
[1760649277154,0.18473059,108270.0,108250.0,0.36856749]
[1760649277357,0.18473059,108270.0,108250.0,0.36756749]
[1760649277573,0.18473059,108270.0,108260.0,0.01847404]
[1760649277985,0.18473059,108270.0,108250.0,0.36756749]
[1760649278595,0.20878963,108280.0,108260.0,0.20321447]
[1760649278804,0.18472337,108270.0,108260.0,0.27443055]
[1760649279828,0.18472337,108270.0,108260.0,0.27447055]
[1760649280078,0.20878963,108280.0,108260.0,0.27447055]
[1760649280079,0.70865016,108280.0,108260.0,0.27447055]
[1760649280300,0.72849693,108280.0,108260.0,0.27447055]
[1760649280713,1.06849693,108280.0,108270.0,0.18472337]
[1760649280882,0.37469478,108280.0,108270.0,0.18472337]
[1760649281118,0.03469478,108280.0,108270.0,0.18472337]
[1760649282271,0.03469478,108280.0,108270.0,0.27441349]
[1760649282470,0.03469478,108280.0,108270.0,0.36757349]
[1760649283082,0.4030472,108300.0,108280.0,0.18469536]
[1760649283285,0.42291195,108300.0,108280.0,0.18469536]
[1760649283699,0.35986475,108300.0,108290.0,0.18468926]
[1760649283916,0.54453695,108300.0,108290.0,0.18468926]
[1760649284127,0.35986475,108300.0,108290.0,0.18468926]
[1760649284777,0.54453695,108300.0,108290.0,0.18472926]
[1760649285018,0.35986475,108300.0,108290.0,0.18472926]
[1760649285502,0.36086475,108300.0,108290.0,0.18472926]
[1760649285715,0.01986475,108300.0,108290.0,0.27441938]
[1760649285918,0.19387648,108320.0,108310.0,0.18465515]
[1760649286236,0.0001507,108320.0,108310.0,0.18465515]
[1760649286592,0.3401507,108320.0,108310.0,0.18465515]
[1760649286794,0.0001507,108320.0,108310.0,0.18465515]
[1760649286996,0.3401507,108320.0,108310.0,0.18465515]
[1760649287218,0.1847888,108320.0,108310.0,0.18469515]
[1760649287415,0.5247888,108320.0,108310.0,0.18469515]
[1760649287623,0.5247888,108320.0,108310.0,4e-05]
[1760649287842,0.3401507,108320.0,108310.0,0.18469515]
[1760649288203,1.02464933,108320.0,108310.0,4e-05]
[1760649288823,0.6179488,108320.0,108310.0,4e-05]
[1760649289072,0.5247888,108320.0,108310.0,8e-05]
[1760649289391,0.6179488,108320.0,108310.0,8e-05]
[1760649289597,0.5257888,108320.0,108310.0,8e-05]
[1760649289796,1.02564933,108320.0,108310.0,8e-05]
[1760649290134,0.6189488,108320.0,108310.0,8e-05]
[1760649290356,0.3411507,108320.0,108310.0,0.18473515]
[1760649290559,0.0011507,108320.0,108310.0,0.08977012]
[1760649290761,0.0011507,108320.0,108310.0,0.27442527]
[1760649291005,0.1857888,108320.0,108310.0,0.27442527]
[1760649291214,0.68564933,108320.0,108310.0,8e-05]
[1760649291421,0.2779888,108320.0,108310.0,8e-05]
[1760649292329,1.11784933,108320.0,108310.0,8e-05]
[1760649292541,1.20753945,108320.0,108310.0,8e-05]
[1760649293372,1.20853945,108320.0,108310.0,8e-05]
[1760649293592,1.25826177,108320.0,108310.0,8e-05]
[1760649294206,1.20853945,108320.0,108310.0,8e-05]
[1760649294417,0.61547892,108320.0,108310.0,8e-05]
[1760649294632,1.25826514,108320.0,108310.0,8e-05]
[1760649295082,1.20853945,108320.0,108310.0,8e-05]
[1760649295292,1.22843156,108320.0,108310.0,8e-05]
[1760649297040,0.63537103,108320.0,108310.0,8e-05]
[1760649297250,0.7782644,108320.0,108310.0,8e-05]
[1760649297498,0.63537103,108320.0,108310.0,8e-05]
[1760649297714,0.63888091,108320.0,108310.0,0.18473515]
[1760649297931,0.63884091,108320.0,108310.0,0.18473515]
[1760649298143,0.63888091,108320.0,108310.0,0.18473515]
[1760649298353,0.45424281,108320.0,108310.0,0.18473515]
[1760649298571,0.02104281,108320.0,108310.0,0.8674858]
[1760649298796,0.0011507,108320.0,108310.0,0.7742858]
[1760649299014,0.0011507,108320.0,108310.0,0.18473515]
[1760649299015,0.02103596,108320.0,108310.0,0.18473515]
[1760649299223,0.0001507,108320.0,108310.0,0.18473515]
[1760649299442,0.0001507,108320.0,108310.0,0.68459568]
[1760649299443,0.02003023,108320.0,108310.0,0.68459568]
[1760649299648,0.02003023,108320.0,108310.0,0.18473515]
[1760649300738,0.0001507,108320.0,108310.0,0.68459568]
[1760649300940,0.0001507,108320.0,108310.0,0.18473515]
[1760649301147,0.1847888,108320.0,108310.0,0.18473515]
[1760649301378,0.02002447,108320.0,108310.0,0.18473515]
[1760649301799,0.20466257,108320.0,108310.0,0.18473515]
[1760649302454,0.20466257,108320.0,108310.0,8e-05]
[1760649303747,0.20466257,108320.0,108310.0,0.18473515]
[1760649303986,0.02002447,108320.0,108310.0,0.18473515]
[1760649304193,0.22524778,108320.0,108310.0,8e-05]
[1760649304404,0.20466257,108320.0,108310.0,8e-05]
[1760649304621,0.63435269,108320.0,108310.0,8e-05]
[1760649304880,0.66763021,108320.0,108310.0,8e-05]
[1760649305128,1.21722411,108320.0,108310.0,8e-05]
[1760649305368,0.52465524,108310.0,108300.0,0.18467031]
[1760649305583,0.54452901,108310.0,108300.0,0.18467031]
[1760649305802,0.54452892,108310.0,108300.0,0.18467031]
[1760649306901,0.1846722,108300.0,108290.0,4e-05]
[1760649307110,0.20454597,108300.0,108290.0,0.18472926]
[1760649307331,0.01987377,108300.0,108290.0,0.18472926]
[1760649307538,0.22762999,108300.0,108290.0,0.18472926]
[1760649307745,0.20454597,108300.0,108290.0,0.18472926]
[1760649308429,1.30940256,108300.0,108290.0,4e-05]
[1760649308862,1.39531821,108300.0,108290.0,4e-05]
[1760649309083,1.34558484,108300.0,108290.0,4e-05]
[1760649309991,1.34558484,108300.0,108260.0,4e-05]
[1760649309992,1.41223975,108300.0,108260.0,4e-05]
[1760649310197,0.52472337,108270.0,108250.0,0.20315374]
[1760649310436,0.30127298,108260.0,108250.0,0.01839673]
[1760649310652,0.30127298,108260.0,108250.0,0.20315423]
[1760649310653,0.27818043,108260.0,108250.0,0.20315423]
[1760649310856,0.27818043,108260.0,108250.0,0.1847575]
[1760649311290,0.27818043,108260.0,108240.0,0.19400424]
[1760649311500,0.27818043,108260.0,108250.0,0.00015072]
[1760649311729,1.22761478,108260.0,108250.0,0.00015072]
[1760649311957,0.44957382,108260.0,108250.0,0.00015072]
[1760649312163,1.22761478,108260.0,108250.0,0.00015072]
[1760649312377,1.25247192,108260.0,108250.0,0.00015072]
[1760649312804,1.27873456,108260.0,108250.0,0.00015072]
[1760649312985,1.36841664,108260.0,108250.0,0.00015072]
[1760649313442,1.02085808,108260.0,108250.0,0.00015072]
[1760649313653,0.931176,108260.0,108250.0,0.00015072]
[1760649315166,0.43131547,108260.0,108250.0,0.00015072]
[1760649315380,0.931176,108260.0,108250.0,0.00015072]
[1760649316031,0.43131547,108260.0,108250.0,0.00015072]
[1760649316245,0.931176,108260.0,108250.0,0.00015072]
[1760649318169,1.271176,108260.0,108250.0,0.00015072]
[1760649319018,0.18477298,108250.0,108230.0,0.21242447]
[1760649319222,0.30131139,108240.0,108230.0,0.21242447]
[1760649319437,0.27821457,108240.0,108230.0,0.21242447]
[1760649319645,0.09344,108240.0,108230.0,0.19402774]
[1760649319846,0.11653682,108240.0,108230.0,0.19402774]
[1760649320280,0.02309682,108240.0,108230.0,0.19402774]
[1760649320493,0.30125218,108250.0,108240.0,0.18477457]
[1760649320722,0.2781575,108250.0,108240.0,0.18477457]
[1760649321550,0.36626264,108260.0,108250.0,0.1847575]
[1760649321759,0.1847575,108250.0,108240.0,0.18477457]
[1760649322195,0.30440307,108260.0,108240.0,0.18477457]
[1760649322425,0.20785218,108250.0,108240.0,0.18477457]
[1760649322626,0.1847575,108250.0,108240.0,0.18477457]
[1760649324831,0.18477457,108240.0,108220.0,0.27824409]
[1760649324971,0.18477457,108240.0,108230.0,0.18479164]
[1760649325518,0.0934,108240.0,108230.0,0.18479164]
[1760649325747,0.11649682,108240.0,108230.0,0.18479164]
[1760649326109,0.46424009,108260.0,108240.0,0.18476148]
[1760649326299,0.30125218,108250.0,108240.0,0.18476148]
[1760649326519,0.54469319,108260.0,108250.0,0.1847575]
[1760649326723,0.1847575,108250.0,108240.0,0.18476148]
[1760649326945,0.54840307,108260.0,108240.0,0.18476148]
[1760649327159,0.02309468,108250.0,108240.0,0.18476148]
[1760649327362,0.5247352,108270.0,108260.0,0.18474043]
[1760649327532,0.61442532,108270.0,108260.0,0.18474043]
[1760649327775,0.36782532,108270.0,108250.0,0.1847575]
[1760649327983,0.02309255,108260.0,108250.0,0.1847575]
[1760649328178,0.43795325,108290.0,108270.0,0.18471643]
[1760649328179,0.22173142,108290.0,108270.0,0.18471643]
[1760649328352,0.30123459,108280.0,108270.0,0.18471643]
[1760649328550,0.00015064,108280.0,108270.0,0.18471643]
[1760649328957,0.00015064,108280.0,108270.0,0.86770708]
[1760649329973,0.00015064,108280.0,108270.0,6.20770708]
[1760649330192,0.00015064,108280.0,108270.0,6.20870708]
[1760649331854,0.00015064,108280.0,108270.0,6.20770708]
[1760649332272,0.00015064,108280.0,108270.0,6.20870708]
[1760649334294,1e-08,108280.0,108270.0,6.24488936]
[1760649334881,1e-08,108280.0,108270.0,6.74474989]
[1760649335304,1e-08,108280.0,108270.0,6.24488936]
[1760649335553,1e-08,108280.0,108270.0,6.51783289]
[1760649336581,1e-08,108280.0,108270.0,6.51787289]
[1760649337652,1e-08,108280.0,108270.0,6.42443289]
[1760649337889,1e-08,108280.0,108270.0,6.51783289]
[1760649338098,1e-08,108280.0,108270.0,1.48165061]
[1760649338741,1e-08,108280.0,108270.0,6.48165061]
[1760649338965,1e-08,108280.0,108270.0,6.48065061]
[1760649339191,1e-08,108280.0,108270.0,6.48165061]
[1760649339641,1e-08,108280.0,108270.0,6.51783289]
[1760649342247,1e-08,108280.0,108270.0,5.74502883]
[1760649342449,1e-08,108280.0,108270.0,6.51783289]
[1760649347277,1e-08,108280.0,108270.0,5.74502883]
[1760649347495,1e-08,108280.0,108270.0,5.61544655]
[1760649347707,1e-08,108280.0,108270.0,5.70876655]
[1760649348122,1e-08,108280.0,108270.0,6.51775289]
[1760649351487,1e-08,108280.0,108270.0,6.48157061]
[1760649351940,1e-08,108280.0,108270.0,6.51775289]
[1760649355009,1e-08,108280.0,108270.0,6.48157061]
[1760649355455,1e-08,108280.0,108270.0,6.51775289]
[1760649364146,1e-08,108280.0,108270.0,6.51767289]
[1760649365522,1e-08,108280.0,108270.0,6.42443289]
[1760649365778,1e-08,108280.0,108270.0,6.51767289]
[1760649366445,0.18992129,108320.0,108300.0,0.1846722]
[1760649366651,0.184656,108310.0,108300.0,0.27436232]
[1760649366879,0.1653265,108320.0,108300.0,0.27436232]
[1760649367079,0.18840626,108320.0,108300.0,0.27436232]
[1760649367743,0.18840626,108320.0,108310.0,0.18465515]
[1760649369297,0.18940626,108320.0,108310.0,0.18465515]
[1760649369522,0.18840626,108320.0,108310.0,0.18465515]
[1760649369952,0.18840626,108320.0,108300.0,0.27440232]
[1760649370164,0.18840626,108320.0,108310.0,0.18465515]
[1760649370382,0.1847888,108320.0,108310.0,0.20312066]
[1760649370600,0.1847888,108320.0,108310.0,0.18465515]
[1760649371026,0.20786856,108320.0,108310.0,0.18465515]
[1760649371245,0.1847888,108320.0,108310.0,0.18469515]
[1760649371677,0.0001507,108320.0,108310.0,0.18469515]
[1760649372097,0.1847888,108320.0,108310.0,0.18469515]
[1760649374148,0.0001507,108320.0,108310.0,0.18469515]
[1760649374598,0.1847888,108320.0,108310.0,0.18469515]
[1760649376499,0.20953429,108320.0,108310.0,0.18469515]
[1760649377183,0.02489619,108320.0,108310.0,0.18469515]
[1760649377396,0.0001507,108320.0,108310.0,0.18469515]
[1760649377835,0.1847888,108320.0,108310.0,0.18469515]
[1760649378515,0.20474673,108320.0,108310.0,0.18469515]
[1760649379549,0.02010863,108320.0,108310.0,0.18469515]
[1760649379771,0.02010863,108320.0,108310.0,0.62419531]
[1760649379964,0.02010863,108320.0,108310.0,0.71388543]
[1760649380169,0.0001507,108320.0,108310.0,0.80704543]
[1760649380376,0.0001507,108320.0,108310.0,5.80704543]
[1760649380818,0.0001507,108320.0,108310.0,6.18322771]
[1760649381462,1e-08,108320.0,108310.0,6.18322771]
[1760649382131,1e-08,108320.0,108310.0,6.21304827]
[1760649382565,0.00482949,108320.0,108310.0,6.21304827]
[1760649382983,0.00482949,108320.0,108310.0,6.21404827]
[1760649383227,0.00482949,108320.0,108310.0,6.18422771]
[1760649385152,0.0002,108340.0,108330.0,0.18462106]
[1760649385371,0.00070221,108340.0,108330.0,1.28261378]
[1760649385596,0.00070221,108340.0,108330.0,6.28261378]
[1760649386248,0.00070221,108340.0,108330.0,6.62261378]
[1760649386460,0.00070221,108340.0,108330.0,6.65243434]
[1760649387547,0.00070221,108340.0,108330.0,6.54544523]
[1760649388662,0.00070221,108340.0,108330.0,6.54644523]
[1760649388880,0.00070221,108340.0,108330.0,6.45332523]
[1760649389081,0.00070221,108340.0,108330.0,6.54644523]
[1760649389489,0.00070221,108340.0,108330.0,6.54544523]
[1760649389747,0.00070221,108340.0,108330.0,6.57152492]
[1760649390904,0.00070221,108340.0,108330.0,6.57252492]
[1760649391386,0.00070221,108340.0,108330.0,6.53634264]
[1760649391805,0.00070221,108340.0,108330.0,6.57252492]
[1760649392668,0.00070221,108340.0,108330.0,6.47940492]
[1760649392883,0.00070221,108340.0,108330.0,0.67757315]
[1760649393102,0.00070221,108340.0,108330.0,0.70843118]
[1760649394002,0.00070221,108340.0,108330.0,0.70743118]
[1760649395941,0.00070221,108340.0,108330.0,5.70743118]
[1760649396163,0.00070221,108340.0,108330.0,6.47944239]
[1760649397463,0.00070221,108340.0,108330.0,6.24267404]
[1760649397675,1e-08,108340.0,108330.0,6.24367404]
[1760649397883,1e-08,108340.0,108330.0,6.2734946]
[1760649398088,1e-08,108340.0,108330.0,6.29034665]
[1760649398472,1e-08,108340.0,108330.0,6.28934665]
[1760649398679,1e-08,108340.0,108330.0,6.29038665]
[1760649400645,1e-08,108340.0,108330.0,6.26056609]
[1760649406803,1e-08,108340.0,108330.0,6.16744609]
[1760649406976,1e-08,108340.0,108330.0,6.26052609]
[1760649407410,1e-08,108340.0,108330.0,6.63974475]
[1760649407645,0.43324554,108380.0,108360.0,0.18456264]
[1760649407844,0.19393068,108380.0,108360.0,0.18456264]
[1760649408051,0.6330703,108380.0,108360.0,0.18456264]
[1760649408236,0.18467501,108380.0,108360.0,0.71339238]
[1760649408436,0.18455292,108370.0,108360.0,0.71339238]
[1760649408630,0.18467501,108380.0,108360.0,0.71339238]
[1760649409685,0.00013912,108380.0,108370.0,0.71338266]
[1760649411089,0.00013912,108380.0,108370.0,0.27424304]
[1760649411297,0.00013912,108380.0,108370.0,0.80650266]
[1760649411507,0.00013912,108380.0,108370.0,0.36736304]
[1760649411687,0.00013912,108380.0,108370.0,0.80654266]
[1760649412867,0.64674249,108380.0,108370.0,4e-05]
[1760649413069,0.18453589,108380.0,108370.0,0.18459292]
[1760649413271,0.20760287,108380.0,108370.0,4e-05]
[1760649413805,0.64674249,108380.0,108370.0,0.18459292]
[1760649413994,0.62367551,108380.0,108370.0,0.18459292]
[1760649414173,0.62367551,108380.0,108370.0,4e-05]
[1760649414949,0.18453589,108380.0,108370.0,4e-05]
[1760649415368,0.62341497,108380.0,108370.0,4e-05]
[1760649415571,0.18427535,108380.0,108370.0,4e-05]
[1760649415901,0.62367551,108380.0,108370.0,4e-05]
[1760649416452,0.18453589,108380.0,108370.0,4e-05]
[1760649416638,0.62367551,108380.0,108370.0,4e-05]
[1760649416848,0.62367551,108380.0,108370.0,0.18459292]
[1760649417056,0.18453589,108380.0,108370.0,0.18459292]
[1760649419777,0.2044645,108380.0,108370.0,0.18459292]
[1760649419933,0.01992861,108380.0,108370.0,0.18459292]
[1760649420991,0.01992861,108380.0,108370.0,0.71342266]
[1760649421194,0.02306485,108390.0,108380.0,0.18453589]
[1760649421397,0.04299189,108390.0,108380.0,0.18453589]
[1760649421970,0.01992704,108390.0,108380.0,0.18453589]
[1760649422379,0.01992704,108390.0,108380.0,0.62367551]
[1760649422972,0.01992704,108390.0,108380.0,0.71675551]
[1760649423178,0.01992704,108390.0,108380.0,0.80644563]
[1760649423786,0.01992704,108390.0,108380.0,0.80648563]
[1760649424234,0.00490903,108400.0,108380.0,1.24562525]
[1760649424448,0.0248294,108400.0,108390.0,0.7133486]
[1760649424658,0.2298525,108400.0,108390.0,0.08969012]
[1760649424865,0.22985499,108400.0,108390.0,0.08969012]
[1760649425072,0.66899461,108400.0,108380.0,4e-05]
[1760649425306,0.18451886,108390.0,108380.0,0.08973012]
[1760649425490,0.22985499,108400.0,108380.0,0.27426601]
[1760649425491,0.21093213,108400.0,108380.0,0.27426601]
[1760649425719,0.20933342,108400.0,108380.0,0.27426601]
[1760649425924,0.18451886,108390.0,108380.0,0.08973012]
[1760649426131,0.18451886,108390.0,108380.0,0.27426601]
[1760649426958,0.64859245,108400.0,108380.0,0.27426601]
[1760649427162,0.64859245,108400.0,108390.0,0.18451886]
[1760649427163,0.64847148,108400.0,108390.0,0.18451886]
[1760649427375,0.20933186,108400.0,108390.0,0.18451886]
[1760649427586,0.02483002,108400.0,108390.0,0.18451886]
[1760649427852,0.04789275,108400.0,108390.0,0.62365848]
[1760649428242,0.04789275,108400.0,108390.0,0.18451886]
[1760649428243,0.23239459,108400.0,108390.0,0.18451886]
[1760649428447,0.20933186,108400.0,108390.0,0.18451886]
[1760649428653,0.02483002,108400.0,108390.0,0.18451886]
[1760649428867,0.04789275,108400.0,108390.0,0.62365848]
[1760649429078,0.23239459,108400.0,108390.0,0.18451886]
[1760649429285,0.02483002,108400.0,108390.0,0.18451886]
[1760649429516,0.23239459,108400.0,108390.0,0.18451886]
[1760649429709,0.02483002,108400.0,108390.0,0.62369848]
[1760649429900,0.04552626,108400.0,108390.0,0.18455886]
[1760649430123,0.2300281,108400.0,108390.0,0.18455886]
[1760649430322,0.20933186,108400.0,108390.0,0.18455886]
[1760649430526,0.02483002,108400.0,108390.0,0.18455886]
[1760649430678,0.04789275,108400.0,108390.0,0.18455886]
[1760649431079,0.00490903,108400.0,108390.0,0.18455886]
[1760649431909,0.02797176,108400.0,108390.0,0.18455886]
[1760649432513,0.00490903,108400.0,108390.0,0.18455886]
[1760649432717,0.02797176,108400.0,108390.0,0.18455886]
[1760649433143,0.2124736,108400.0,108390.0,0.18455886]
[1760649433352,0.18941087,108400.0,108390.0,0.18455886]
[1760649434139,0.00490903,108400.0,108390.0,0.18455886]
[1760649434353,0.02797176,108400.0,108390.0,0.7133886]
[1760649434569,0.00490903,108400.0,108390.0,0.7133886]
[1760649435454,0.00490903,108400.0,108390.0,0.8064686]
[1760649435684,0.00490903,108400.0,108390.0,0.36732898]
[1760649435903,0.00490903,108400.0,108390.0,0.8064686]
[1760649436333,0.00490903,108400.0,108390.0,0.36732898]
[1760649436542,0.00490903,108400.0,108390.0,0.8064686]
[1760649436953,0.00490903,108400.0,108390.0,0.36732898]
[1760649438885,0.2124736,108400.0,108390.0,4e-05]
[1760649439093,0.62855049,108400.0,108390.0,4e-05]
[1760649439312,1.06769011,108400.0,108390.0,4e-05]
[1760649439523,0.62249087,108400.0,108390.0,4e-05]
[1760649439734,1.52067433,108400.0,108390.0,4e-05]
[1760649439955,1.52437334,108400.0,108390.0,4e-05]
[1760649441460,1.52537334,108400.0,108390.0,4e-05]
[1760649442161,1.61506346,108400.0,108390.0,4e-05]
[1760649443127,1.61506346,108400.0,108390.0,0.15004]
[1760649443833,0.5540141,108400.0,108390.0,0.33455886]
[1760649444104,1.0663295,108400.0,108390.0,0.33455886]
[1760649444357,0.62718988,108400.0,108390.0,0.33455886]
[1760649444575,1.0663295,108400.0,108390.0,0.33455886]
[1760649444807,0.00960804,108400.0,108390.0,0.33455886]
[1760649445029,0.00590903,108400.0,108390.0,0.8633886]
[1760649445253,0.00590903,108400.0,108390.0,0.42424898]
[1760649445254,0.00490903,108400.0,108390.0,0.42424898]
[1760649446534,0.00490903,108400.0,108390.0,0.44466363]
[1760649446742,0.00490903,108400.0,108390.0,0.88380325]
[1760649446962,0.16129584,108420.0,108400.0,0.18450184]
[1760649447174,0.43927871,108420.0,108400.0,0.27419196]
[1760649447394,0.62374652,108420.0,108400.0,0.27419196]
[1760649447602,0.62374652,108420.0,108410.0,0.18448482]
[1760649448024,0.1846069,108420.0,108410.0,0.18448482]
[1760649448227,0.62374652,108420.0,108410.0,0.18448482]
[1760649448449,0.62474652,108420.0,108410.0,0.18448482]
[1760649448645,0.2054839,108420.0,108410.0,0.18448482]
[1760649448855,0.64462352,108420.0,108410.0,0.18448482]
[1760649449473,0.2054839,108420.0,108410.0,0.18448482]
[1760649449678,0.64362352,108420.0,108400.0,0.36727196]
[1760649449879,0.64462352,108420.0,108410.0,0.18448482]
[1760649450495,0.64462352,108420.0,108400.0,0.36727196]
[1760649450735,0.64462352,108420.0,108410.0,0.18448482]
[1760649451573,0.64462352,108420.0,108390.0,0.33455886]
[1760649451574,0.18448482,108410.0,108390.0,0.33455886]
[1760649451781,0.18450184,108400.0,108390.0,0.51728898]
[1760649452218,0.62364146,108400.0,108390.0,0.15004]
[1760649452416,1.06278108,108400.0,108390.0,0.15004]
[1760649453601,2.04121001,108400.0,108390.0,0.15004]
[1760649453778,1.60207039,108400.0,108390.0,0.15004]
[1760649454627,1.60307039,108400.0,108390.0,0.15004]
[1760649455269,1.51338831,108400.0,108390.0,0.15004]
[1760649455694,1.51238831,108400.0,108390.0,0.15004]
[1760649456134,1.51338831,108400.0,108390.0,0.15004]
[1760649457218,0.63510907,108400.0,108390.0,0.15004]
[1760649457425,0.63510907,108400.0,108390.0,0.33455886]
[1760649457635,0.54541895,108400.0,108390.0,0.15004]
[1760649458760,0.54441895,108400.0,108390.0,0.15004]
[1760649459182,0.54541895,108400.0,108390.0,0.15004]
[1760649459393,0.54441895,108400.0,108390.0,0.15004]
[1760649459884,0.70948981,108400.0,108390.0,0.15004]
[1760649460729,0.71048981,108400.0,108390.0,0.15004]
[1760649460944,0.73823651,108400.0,108390.0,0.15004]
[1760649461147,0.3783194,108400.0,108390.0,0.15004]
[1760649462001,0.3773194,108400.0,108390.0,0.15004]
[1760649462450,0.3783194,108400.0,108390.0,0.15004]
[1760649463779,0.64293866,108400.0,108390.0,0.15004]
[1760649464209,0.64293866,108400.0,108390.0,0.33455886]
[1760649464428,0.61519196,108400.0,108390.0,0.15004]
[1760649464640,0.52550184,108400.0,108390.0,0.33455886]
[1760649465102,0.18550184,108400.0,108390.0,0.33455886]
[1760649465315,0.18550184,108400.0,108390.0,0.15004]
[1760649465520,0.18450184,108400.0,108390.0,0.15004]
[1760649465722,0.18550184,108400.0,108390.0,0.33455886]
[1760649466149,0.31219063,108400.0,108390.0,0.15004]
[1760649467207,0.65219063,108400.0,108390.0,0.15004]
[1760649468539,0.68837291,108400.0,108390.0,0.15004]
[1760649468787,0.71327649,108400.0,108390.0,0.15004]
[1760649469645,0.71227649,108400.0,108390.0,0.15004]
[1760649469853,0.71327649,108400.0,108390.0,0.15004]
[1760649471156,0.74639818,108400.0,108390.0,0.15004]
[1760649471614,0.64009554,108400.0,108390.0,0.15004]
[1760649472760,0.70839951,108400.0,108390.0,0.15004]
[1760649472969,0.70939951,108400.0,108390.0,0.15004]
[1760649473181,0.72928424,108400.0,108390.0,0.15004]
[1760649473823,0.22070114,108390.0,108380.0,4e-05]
[1760649474049,0.18455292,108370.0,108360.0,0.01839673]
[1760649474525,0.18460402,108340.0,108330.0,4e-05]
[1760649475228,0.18460402,108340.0,108330.0,0.00017912]
[1760649476105,0.28622098,108340.0,108330.0,0.00017912]
[1760649482204,0.48622098,108340.0,108330.0,0.00017912]
[1760649482655,0.57590306,108340.0,108330.0,0.00017912]
[1760649482865,0.59574516,108340.0,108330.0,0.00017912]
[1760649483046,0.50606308,108340.0,108330.0,0.00017912]
[1760649483272,0.50605999,108340.0,108330.0,0.00017912]
[1760649483968,0.84605999,108340.0,108330.0,0.00017912]
[1760649484187,0.2,108340.0,108330.0,0.18480018]
[1760649484880,0.2,108340.0,108330.0,0.2744903]
[1760649485091,0.2,108340.0,108330.0,5.6144903]
[1760649485298,0.2,108340.0,108330.0,5.62647507]
[1760649485745,0.2,108340.0,108330.0,5.71967507]
[1760649486151,0.2,108340.0,108330.0,5.72067507]
[1760649487209,0.2,108340.0,108330.0,5.71967507]
[1760649487619,0.2,108340.0,108330.0,5.72067507]
[1760649487824,0.2,108340.0,108330.0,5.75685735]
[1760649488512,0.2,108340.0,108330.0,5.75689735]
[1760649489919,0.2,108340.0,108330.0,0.7087303]
[1760649490358,0.2,108340.0,108330.0,0.6155303]
[1760649490587,0.2,108340.0,108330.0,0.2755303]
[1760649490836,0.38460402,108340.0,108330.0,0.18584018]
[1760649491522,0.38460402,108340.0,108330.0,0.00121912]
[1760649491739,0.38460402,108340.0,108330.0,0.18584018]
[1760649491917,0.2,108340.0,108330.0,0.18484018]
[1760649492166,0.2,108340.0,108330.0,0.18584018]
[1760649492815,0.38460402,108340.0,108330.0,0.18584018]
[1760649493430,0.38460402,108340.0,108330.0,0.18484018]
[1760649493634,0.2,108340.0,108330.0,0.18484018]
[1760649495116,0.38460402,108340.0,108330.0,0.00021912]
[1760649495754,0.44152329,108340.0,108330.0,0.00021912]
[1760649496177,0.14780446,108340.0,108330.0,0.00021912]
[1760649500268,0.16767376,108340.0,108330.0,0.00021912]
[1760649506661,0.28226746,108340.0,108330.0,0.00021912]
[1760649507301,0.65538915,108340.0,108330.0,0.00021912]
[1760649507712,0.63048557,108340.0,108330.0,0.00021912]
[1760649507926,0.68023344,108340.0,108330.0,0.00021912]
[1760649508136,0.80567387,108340.0,108330.0,0.00021912]
[1760649508349,0.71641572,108340.0,108330.0,0.00021912]
[1760649508560,0.66666785,108340.0,108330.0,0.00021912]
[1760649508977,0.65535668,108340.0,108330.0,0.00021912]